bitfinex/quotes_SOLUSD_20240729
["timestamp","ask_amount","ask_price","bid_price","bid_amount"]
[1722211458044,57.75,185.23,185.16,12.75]
[1722211458371,12.75,185.22,185.09,1.08015373]
[1722211458673,12.75,185.2,185.1,1.4197315]
[1722211458860,12.75,185.19,185.13,12.75]
[1722211459763,12.75,185.19,185.14,20.0]
[1722211459952,12.75,185.2,185.1,1.2497315]
[1722211460156,12.75,185.19,185.12,12.75]
[1722211460353,12.75,185.19,185.13,20.0]
[1722211462078,12.75,185.19,185.12,12.75]
[1722211462880,12.75,185.18,185.12,12.75]
[1722211463576,12.75,185.18,185.08,21.5544]
[1722211463753,12.75,185.18,185.12,12.75]
[1722211467277,12.75,185.18,185.09,20.0]
[1722211467459,45.0,185.17,185.12,12.75]
[1722211468155,0.17,185.19,185.13,12.75]
[1722211468372,12.75,185.19,185.13,12.75]
[1722211471469,57.75,185.18,185.09,20.0]
[1722211471774,57.75,185.18,185.11,12.75]
[1722211472078,57.75,185.18,185.12,32.75]
[1722211472250,45.0,185.18,185.12,12.75]
[1722211472560,12.75,185.18,185.12,12.75]
[1722211475387,12.75,185.18,185.09,20.0]
[1722211475682,12.75,185.18,185.11,12.75]
[1722211475888,12.75,185.18,185.12,20.0]
[1722211476177,12.75,185.18,185.09,20.0]
[1722211476178,12.75,185.18,185.11,12.75]
[1722211476479,12.75,185.18,185.12,20.0]
[1722211476665,12.75,185.18,185.11,12.75]
[1722211479372,57.75,185.17,185.11,12.75]
[1722211479570,12.75,185.16,185.09,20.0]
[1722211480096,12.75,185.17,185.1,12.75]
[1722211480261,45.0,185.16,185.11,20.0]
[1722211481083,57.75,185.16,185.09,32.75]
[1722211481686,57.75,185.16,185.1,12.75]
[1722211481879,57.75,185.16,185.11,20.0]
[1722211482069,45.0,185.16,185.11,20.0]
[1722211482783,12.75,185.17,185.11,20.0]
[1722211483075,12.92,185.18,185.11,32.75]
[1722211483288,45.0,185.17,185.12,12.75]
[1722211485292,45.0,185.18,185.12,12.75]
[1722211487084,57.75,185.18,185.12,12.75]
[1722211487287,57.75,185.18,185.11,20.0]
[1722211487288,12.75,185.17,185.11,32.75]
[1722211490500,12.75,185.17,185.11,20.0]
[1722211490694,12.75,185.17,185.11,12.75]
[1722211491765,57.75,185.18,185.12,12.75]
[1722211492798,45.0,185.18,185.14,12.75]
[1722211492972,45.0,185.19,185.14,12.75]
[1722211493181,57.75,185.19,185.12,12.75]
[1722211493396,12.75,185.17,185.11,12.75]
[1722211494394,12.75,185.17,185.09,20.0]
[1722211494581,45.0,185.16,185.11,12.75]
[1722211494783,45.0,185.17,185.11,12.75]
[1722211495276,17.2396,185.2,185.13,12.75]
[1722211495517,45.0,185.19,185.13,12.75]
[1722211500709,62.0699,185.19,185.12,12.75]
[1722211500905,17.0702,185.18,185.11,12.75]
[1722211501109,57.75,185.17,185.09,20.0]
[1722211501283,57.75,185.17,185.1,12.75]
[1722211501482,57.75,185.17,185.11,20.0]
[1722211501911,45.0,185.17,185.11,32.75]
[1722211504330,45.0,185.17,185.12,12.75]
[1722211504513,12.75,185.2,185.13,12.75]
[1722211504703,12.75,185.2,185.11,20.0]
[1722211504704,45.0,185.19,185.14,12.75]
[1722211505608,57.75,185.19,185.12,12.75]
[1722211505789,12.75,185.18,185.12,12.75]
[1722211506613,12.75,185.18,185.11,32.75]
[1722211507194,17.0701,185.18,185.11,32.75]
[1722211507601,12.75,185.18,185.11,32.75]
[1722211510615,45.0,185.19,185.14,12.75]
[1722211510818,4.3191,185.23,185.16,12.75]
[1722211511025,12.75,185.23,185.16,12.75]
[1722211511326,22.304717,185.27,185.2,12.75]
[1722211511622,12.75,185.27,185.2,12.75]
[1722211512630,12.75,185.27,185.21,12.75]
[1722211513124,17.0677,185.28,185.22,12.75]
[1722211513319,27.9622,185.29,185.23,12.75]
[1722211513617,12.75,185.31,185.25,12.75]
[1722211515223,17.0671,185.31,185.24,12.75]
[1722211515905,4.3171,185.31,185.24,12.75]
[1722211516101,12.75,185.3,185.24,12.75]
[1722211516304,12.75,185.3,185.23,12.75]
[1722211516504,12.75,185.3,185.24,12.75]
[1722211517115,17.0673,185.3,185.24,12.75]
[1722211521204,4.3175,185.29,185.23,12.75]
[1722211522224,17.0678,185.28,185.21,16.6601]
[1722211522429,17.0678,185.28,185.22,12.75]
[1722211523619,41.3007,185.33,185.23,32.75]
[1722211523620,12.75,185.3,185.23,32.75]
[1722211523829,12.75,185.3,185.24,12.75]
[1722211525810,17.0674,185.3,185.23,32.75]
[1722211526125,12.75,185.3,185.23,32.75]
[1722211527337,12.75,185.29,185.21,16.6601]
[1722211527526,12.75,185.27,185.2,12.75]
[1722211527715,12.75,185.26,185.2,12.75]
[1722211527912,57.75,185.25,185.19,12.75]
[1722211528311,45.0,185.25,185.19,12.75]
[1722211528531,4.318,185.27,185.19,12.75]
[1722211528532,45.0,185.26,185.19,12.75]
[1722211528829,45.0,185.26,185.2,12.75]
[1722211529520,49.3182,185.27,185.2,12.75]
[1722211529727,4.3182,185.26,185.16,15.4486]
[1722211530029,12.75,185.24,185.17,32.75]
[1722211530835,12.75,185.25,185.18,12.75]
[1722211531040,45.0,185.24,185.18,12.75]
[1722211531439,45.0,185.24,185.17,32.75]
[1722211531818,12.75,185.23,185.17,12.75]
[1722211532424,12.75,185.23,185.16,12.75]
[1722211533026,12.75,185.23,185.17,12.75]
[1722211534048,45.0,185.24,185.18,12.75]
[1722211534744,57.75,185.24,185.17,12.75]
[1722211535046,12.75,185.23,185.17,12.75]
[1722211535340,12.75,185.21,185.14,12.75]
[1722211535529,12.75,185.2,185.14,12.75]
[1722211535931,12.75,185.2,185.13,12.75]
[1722211536243,12.75,185.19,185.13,12.75]
[1722211536553,12.75,185.18,185.11,12.75]
[1722211536935,12.75,185.19,185.12,12.75]
[1722211537128,45.0,185.18,185.12,12.75]
[1722211537646,45.0,185.18,185.09,6.3942]
[1722211537647,62.0702,185.18,185.09,6.3942]
[1722211537947,12.75,185.14,185.03,21.8895]
[1722211538248,12.75,185.13,185.07,12.75]
[1722211538541,57.75,185.13,185.06,12.75]
[1722211538746,12.75,185.13,185.06,12.75]
[1722211539133,12.75,185.13,185.07,20.0]
[1722211541128,12.75,185.13,185.03,21.8895]
[1722211541344,57.75,185.12,185.03,21.8895]
[1722211541536,12.75,185.11,185.04,12.75]
[1722211541939,57.75,185.12,185.05,12.75]
[1722211542147,12.75,185.13,185.07,12.75]
[1722211542338,28.2047,185.14,185.08,12.75]
[1722211542648,28.2047,185.14,185.03,15.6913]
[1722211542649,12.75,185.12,185.06,12.75]
[1722211542846,57.75,185.11,185.05,12.75]
[1722211543044,12.75,185.11,184.99,22.4964]
[1722211543350,12.75,185.1,185.04,12.75]
[1722211543751,12.75,185.1,185.0,20.0]
[1722211543929,45.0,185.09,185.03,12.75]
[1722211544331,57.75,185.09,185.03,12.75]
[1722211544534,12.75,185.08,184.99,16.1079]
[1722211544762,12.75,185.08,184.95,57.4361]
[1722211544763,12.75,185.08,185.01,12.75]
[1722211545055,12.75,185.08,184.95,73.898]
[1722211545056,57.75,185.07,185.0,12.75]
[1722211545645,12.75,185.06,184.99,12.75]
[1722211545836,12.75,185.06,185.0,20.0]
[1722211546264,12.75,185.06,184.95,73.898]
[1722211546442,57.75,185.05,184.95,22.898]
[1722211546641,12.75,185.04,184.98,12.75]
[1722211547043,12.75,185.04,184.97,12.75]
[1722211547256,12.75,185.04,184.98,12.75]
[1722211548354,12.75,185.04,184.95,22.898]
[1722211548534,12.75,185.04,184.94,0.2694999]
[1722211548535,32.75,185.04,184.94,0.2694999]
[1722211548734,12.75,185.02,184.95,12.75]
[1722211549156,45.0,185.01,184.95,12.75]
[1722211549379,12.75,185.02,184.95,12.75]
[1722211549565,17.0733,185.05,184.98,12.75]
[1722211549859,45.0,185.04,184.98,12.75]
[1722211550431,12.75,185.04,184.98,12.75]
[1722211551641,12.75,185.03,184.97,12.75]
[1722211552158,4.3234,185.04,184.94,0.2694999]
[1722211552159,12.75,185.02,184.96,12.75]
[1722211552672,12.75,185.02,184.95,12.75]
[1722211552831,45.0,185.01,184.95,12.75]
[1722211553452,57.75,185.01,184.95,12.75]
[1722211555062,57.75,185.01,184.94,13.0194999]
[1722211555244,57.75,185.01,184.95,20.0]
[1722211555644,57.75,185.01,184.95,32.75]
[1722211556884,57.75,185.01,184.95,12.75]
[1722211558150,57.75,185.01,184.94,13.0194999]
[1722211558469,57.75,185.01,184.95,20.0]
[1722211559765,12.75,185.0,184.94,0.2694999]
[1722211560558,12.75,184.99,184.94,0.2694999]
[1722211561853,12.75,185.0,184.94,0.2694999]
[1722211562040,45.0,184.99,184.94,0.2694999]
[1722211562472,12.75,184.98,184.94,0.2694999]
[1722211562643,12.75,184.97,184.94,0.2694999]
[1722211562844,12.75,184.98,184.94,0.2694999]
[1722211563771,12.75,184.96,184.94,0.2694999]
[1722211563946,12.75,184.95,184.94,0.2694999]
[1722211564344,57.75,184.95,184.94,0.2694999]
[1722211565446,57.92,184.95,184.94,0.2694999]
[1722211567447,45.17,184.95,184.94,0.2694999]
[1722211567657,57.92,184.95,184.94,0.2694999]
[1722211570371,82.2454,184.95,184.94,0.2694999]
[1722211570557,82.4154,184.95,184.94,0.2694999]
[1722211570870,95.1654,184.95,184.94,0.2694999]
[1722211571174,110.9727,184.95,184.94,0.2694999]
[1722211571476,116.3887,184.95,184.94,0.2694999]
[1722211572253,85.4727,184.95,184.94,0.2694999]
[1722211572552,110.9727,184.95,184.94,0.2694999]
[1722211573159,149.2227,184.95,184.94,0.2694999]
[1722211573349,149.2227,184.95,184.79,22.7317]
[1722211573350,12.75,184.88,184.81,12.75]
[1722211574951,45.0,184.87,184.81,12.75]
[1722211575145,12.75,184.88,184.81,12.75]
[1722211575454,12.75,184.88,184.82,12.75]
[1722211576963,12.75,184.88,184.81,12.75]
[1722211577291,12.75,184.89,184.81,12.75]
[1722211577580,45.0,184.88,184.82,12.75]
[1722211577757,20.0,184.94,184.83,12.75]
[1722211577967,12.75,184.91,184.84,12.75]
[1722211578153,45.0,184.9,184.84,12.75]
[1722211578468,57.75,184.9,184.83,12.75]
[1722211579252,62.0767,184.9,184.83,12.75]
[1722211579660,62.0767,184.9,184.82,12.75]
[1722211581694,62.0767,184.9,184.83,12.75]
[1722211581861,4.3269,184.89,184.83,12.75]
[1722211582475,62.0766,184.9,184.83,12.75]
[1722211583384,15.8073,184.95,184.86,12.75]
[1722211583579,12.75,184.93,184.86,12.75]
[1722211584077,17.0764,184.91,184.84,12.75]
[1722211584670,4.3266,184.9,184.84,12.75]
[1722211585068,17.0764,184.91,184.84,12.75]
[1722211585368,15.8073,184.95,184.86,12.75]
[1722211585564,12.75,184.93,184.86,12.75]
[1722211585778,45.0,184.92,184.86,12.75]
[1722211586352,45.0,184.92,184.8,1.08187841]
[1722211586353,12.75,184.91,184.85,12.75]
[1722211586785,12.75,184.91,184.8,1.08187841]
[1722211587080,12.75,184.91,184.84,12.75]
[1722211587778,12.75,184.9,184.83,12.75]
[1722211587976,12.75,184.9,184.84,20.0]
[1722211588177,12.75,184.88,184.81,12.75]
[1722211588481,17.0771,184.88,184.79,23.98352802]
[1722211588782,12.75,184.86,184.79,23.98352802]
[1722211588982,12.75,184.86,184.79,35.4817]
[1722211589378,12.75,184.86,184.79,12.75]
[1722211589995,12.75,184.86,184.8,20.0]
[1722211590289,12.75,184.86,184.79,12.75]
[1722211590488,12.75,184.86,184.8,20.0]
[1722211590658,12.75,184.85,184.79,12.75]
[1722211590858,12.75,184.85,184.8,20.0]
[1722211592005,12.75,184.86,184.8,20.0]
[1722211595785,12.75,184.87,184.8,32.75]
[1722211595970,45.0,184.86,184.8,32.75]
[1722211596887,15.1882,184.89,184.82,12.75]
[1722211597083,12.75,184.91,184.84,12.75]
[1722211597598,12.75,184.92,184.85,12.75]
[1722211598264,17.0762,184.92,184.85,12.75]
[1722211599179,17.0762,184.92,184.86,12.75]
[1722211599381,17.0762,184.92,184.8,36.74780164]
[1722211599382,16.3839,184.93,184.87,12.75]
[1722211599570,16.3839,184.93,184.88,12.75]
[1722211599769,16.3839,184.93,184.87,12.75]
[1722211602177,16.6121,184.98,184.9,12.75]
[1722211602382,16.6121,184.98,184.91,12.75]
[1722211602383,17.245,184.97,184.91,12.75]
[1722211602582,16.6121,184.98,184.93,12.75]
[1722211602781,17.074,185.01,184.94,12.75]
[1722211603190,19.7394,185.03,184.96,12.75]
[1722211603498,28.1657,185.03,184.97,12.75]
[1722211603667,28.1657,185.03,184.96,12.75]
[1722211604071,4.3238,185.02,184.96,12.75]
[1722211604596,17.0738,185.02,184.95,12.75]
[1722211605396,4.3238,185.02,184.95,12.75]
[1722211605714,32.4893,185.03,184.96,12.75]
[1722211606297,28.1657,185.03,184.96,12.75]
[1722211606487,15.4157,185.03,184.98,12.75]
[1722211607405,15.4157,185.03,184.9,1.081242]
[1722211607406,4.3234,185.04,184.99,12.75]
[1722211610511,4.3237,185.03,184.98,12.75]
[1722211611204,4.3234,185.04,184.98,12.75]
[1722211612800,4.3236,185.03,184.98,12.75]
[1722211615600,4.3236,185.03,184.97,12.75]
[1722211617695,4.3236,185.03,184.98,12.75]
[1722211619504,4.3238,185.02,184.97,12.75]
[1722211619810,17.0738,185.02,184.95,12.75]
[1722211620406,12.75,185.02,184.95,12.75]
[1722211620605,4.3236,185.03,184.97,12.75]
[1722211620606,17.0736,185.03,184.97,12.75]
[1722211620786,17.0734,185.04,184.97,12.75]
[1722211621083,45.0,185.03,184.97,12.75]
[1722211621699,15.4157,185.07,184.99,12.75]
[1722211621700,17.0731,185.05,184.99,12.75]
[1722211625501,4.3234,185.04,184.99,12.75]
[1722211625706,20.0,185.1,185.02,12.75]
[1722211625907,4.322,185.1,185.05,12.75]
[1722211626211,15.1103,185.11,185.05,12.75]
[1722211626510,20.0,185.16,185.08,12.75]
[1722211626511,15.1103,185.16,185.08,12.75]
[1722211626806,15.1103,185.16,185.1,12.75]
[1722211627017,15.1103,185.16,185.05,1.08055816]
[1722211627018,15.1103,185.16,185.11,12.75]
[1722211627189,4.3203,185.17,185.11,12.75]
[1722211627379,17.0703,185.17,185.11,12.75]
[1722211628003,4.3203,185.17,185.11,12.75]
[1722211628203,45.0,185.16,185.11,12.75]
[1722211628908,4.3199,185.19,185.12,12.75]
[1722211629126,17.0699,185.19,185.12,12.75]
[1722211629412,17.0696,185.2,185.14,12.75]
[1722211629808,12.75,185.19,185.13,12.75]
[1722211630303,17.0696,185.2,185.14,12.75]
[1722211630510,4.3196,185.2,185.14,12.75]
[1722211630803,4.3196,185.2,185.15,12.75]
[1722211631001,4.3196,185.2,185.14,12.75]
[1722211631792,45.0,185.19,185.14,12.75]
[1722211631998,49.3199,185.19,185.14,12.75]
[1722211632696,49.3199,185.19,185.12,12.75]
[1722211633008,62.0699,185.19,185.12,12.75]
[1722211633688,57.75,185.19,185.12,12.75]
[1722211633890,45.0,185.19,185.13,12.75]
[1722211634198,45.0,185.19,185.14,12.75]
[1722211635298,27.8603,185.21,185.15,12.75]
[1722211635619,45.0,185.2,185.15,12.75]
[1722211635799,45.0,185.2,185.08,1.08026935]
[1722211635800,45.0,185.2,185.16,12.75]
[1722211636806,4.3188,185.24,185.16,12.75]
[1722211637007,25.8063,185.26,185.19,12.75]
[1722211637312,38.5563,185.26,185.19,12.75]
[1722211637692,15.4253,185.26,185.2,12.75]
[1722211638493,19.7436,185.26,185.2,12.75]
[1722211639596,15.4253,185.26,185.21,12.75]
[1722211640701,15.4253,185.26,185.2,12.75]
[1722211641703,17.068,185.27,185.2,12.75]
[1722211641893,45.0,185.26,185.2,12.75]
[1722211642093,45.0,185.26,185.21,12.75]
[1722211643617,49.3184,185.26,185.14,15.6457]
[1722211643819,49.3184,185.26,185.2,12.75]
[1722211644023,45.0,185.26,185.2,12.75]
[1722211644193,45.0,185.26,185.21,12.75]
[1722211645819,45.0,185.26,185.15,20.17]
[1722211646209,49.3182,185.26,185.2,12.75]
[1722211647027,45.0,185.26,185.2,12.75]
[1722211647317,45.0,185.26,185.21,12.75]
[1722211647522,45.0,185.27,185.21,12.75]
[1722211648022,45.0,185.27,185.22,12.75]
[1722211648225,45.0,185.27,185.21,12.75]
[1722211648432,17.0678,185.28,185.21,12.75]
[1722211649303,4.318,185.27,185.21,12.75]
[1722211650225,4.3182,185.26,185.15,20.17]
[1722211650406,4.3182,185.26,185.2,12.75]
[1722211651829,17.068,185.27,185.2,12.75]
[1722211652019,45.0,185.26,185.2,12.75]
[1722211652203,45.0,185.26,185.15,21.24978798]
[1722211652524,4.318,185.27,185.2,12.75]
[1722211652729,45.0,185.26,185.2,12.75]
[1722211653330,57.75,185.26,185.19,12.75]
[1722211653529,62.0682,185.26,185.19,12.75]
[1722211653822,17.0684,185.25,185.18,12.75]
[1722211653998,12.75,185.25,185.18,12.75]
[1722211654202,57.75,185.26,185.19,12.75]
[1722211654438,45.0,185.26,185.21,12.75]
[1722211654623,45.0,185.27,185.21,12.75]
[1722211655128,57.75,185.27,185.2,12.75]
[1722211655332,62.068,185.27,185.2,12.75]
[1722211656127,49.318,185.27,185.15,20.0]
[1722211656331,49.318,185.27,185.21,12.75]
[1722211659625,49.318,185.27,185.15,21.07978308]
[1722211659925,4.3176,185.29,185.22,12.75]
[1722211660128,45.0,185.28,185.23,12.75]
[1722211660719,45.0,185.29,185.23,12.75]
[1722211662428,49.3175,185.29,185.23,12.75]
[1722211662745,29.2688,185.3,185.23,12.75]
[1722211663030,33.5861,185.3,185.23,12.75]
[1722211663217,12.75,185.29,185.23,12.75]
[1722211663610,29.2688,185.3,185.23,12.75]
[1722211663805,45.0,185.29,185.23,12.75]
[1722211664220,45.0,185.29,185.24,12.75]
[1722211664619,29.2688,185.3,185.24,12.75]
[1722211665135,29.2688,185.3,185.23,12.75]
[1722211665304,16.5188,185.3,185.23,12.75]
[1722211665502,29.2688,185.3,185.23,12.75]
[1722211666119,57.75,185.29,185.22,12.75]
[1722211666306,62.0675,185.29,185.22,12.75]
[1722211666920,12.75,185.28,185.17,6.3681]
[1722211667123,12.75,185.28,185.21,12.75]
[1722211667124,45.0,185.27,185.21,12.75]
[1722211667843,12.75,185.28,185.22,12.75]
[1722211668022,12.75,185.29,185.22,12.75]
[1722211668330,45.0,185.28,185.22,12.75]
[1722211669509,57.75,185.28,185.22,12.75]
[1722211670022,45.0,185.28,185.22,12.75]
[1722211670933,45.0,185.28,185.21,12.75]
[1722211671132,45.0,185.28,185.2,12.75]
[1722211671133,12.75,185.27,185.2,12.75]
[1722211671331,45.0,185.28,185.2,12.75]
[1722211671523,12.75,185.27,185.2,12.75]
[1722211671728,45.0,185.28,185.2,12.75]
[1722211671924,12.75,185.27,185.2,12.75]
[1722211672233,45.0,185.29,185.22,12.75]
[1722211672421,12.75,185.28,185.22,12.75]
[1722211672623,45.0,185.27,185.22,12.75]
[1722211674411,45.0,185.27,185.21,12.75]
[1722211675516,45.0,185.27,185.17,6.3681]
[1722211675724,12.75,185.25,185.17,6.3681]
[1722211675925,12.75,185.24,185.17,19.1181]
[1722211676138,45.0,185.27,185.19,12.75]
[1722211676318,12.75,185.27,185.2,12.75]
[1722211676814,12.75,185.27,185.21,12.75]
[1722211678740,57.92,185.28,185.21,12.75]
[1722211679741,62.2378,185.28,185.21,12.75]
[1722211680043,4.318,185.27,185.21,12.75]
[1722211680251,4.318,185.27,185.2,12.75]
[1722211680425,12.75,185.24,185.14,15.6457]
[1722211680626,12.75,185.23,185.17,12.75]
[1722211680823,12.75,185.24,185.18,12.75]
[1722211682148,12.75,185.26,185.19,12.75]
[1722211682338,45.0,185.25,185.2,12.75]
[1722211682726,45.0,185.26,185.2,12.75]
[1722211684244,57.75,185.26,185.19,12.75]
[1722211686353,62.0682,185.26,185.19,12.75]
[1722211686533,12.75,185.25,185.18,12.75]
[1722211688955,4.3179,185.28,185.2,12.75]
[1722211689147,12.75,185.27,185.21,12.75]
[1722211689342,12.75,185.28,185.22,12.75]
[1722211689547,12.75,185.28,185.21,12.75]
[1722211690850,4.3177,185.29,185.21,12.75]
[1722211691039,12.75,185.27,185.21,12.75]
[1722211693643,17.068,185.27,185.2,12.75]
[1722211693963,16.5188,185.3,185.21,12.75]
[1722211694152,12.75,185.28,185.22,12.75]
[1722211695162,16.5188,185.3,185.23,12.75]
[1722211695467,29.2688,185.3,185.23,12.75]
[1722211695765,12.75,185.29,185.22,12.75]
[1722211695938,12.75,185.28,185.21,12.75]
[1722211696752,17.0678,185.28,185.21,12.75]
[1722211697559,4.318,185.27,185.21,12.75]
[1722211697748,12.75,185.28,185.21,12.75]
[1722211698556,12.75,185.29,185.22,12.75]
[1722211699167,12.75,185.28,185.21,12.75]
[1722211699336,4.3173,185.3,185.21,12.75]
[1722211699537,57.75,185.29,185.22,12.75]
[1722211699764,57.75,185.29,185.23,12.75]
[1722211700143,57.75,185.29,185.22,12.75]
[1722211700344,4.3175,185.3,185.22,12.75]
[1722211700551,12.75,185.29,185.22,12.75]
[1722211701264,12.75,185.29,185.23,12.75]
[1722211701653,4.3175,185.3,185.23,12.75]
[1722211701857,2.83223805,185.32,185.23,12.75]
[1722211701858,12.75,185.29,185.23,12.75]
[1722211702236,12.75,185.29,185.22,12.75]
[1722211704054,17.0675,185.29,185.22,12.75]
[1722211710375,4.3175,185.29,185.22,12.75]
[1722211710553,17.0675,185.29,185.22,12.75]
[1722211712971,4.3178,185.28,185.22,12.75]
[1722211713379,4.3178,185.28,185.21,12.75]
[1722211713678,17.0677,185.29,185.21,12.75]
[1722211713876,12.75,185.28,185.21,12.75]
[1722211714248,17.0683,185.26,185.2,15.7642]
[1722211714671,12.75,185.25,185.2,15.7642]
[1722211716972,12.75,185.25,185.18,18.9698]
[1722211718277,12.75,185.23,185.18,6.2198]
[1722211718465,12.75,185.24,185.18,6.2198]
[1722211727191,20.0,185.24,185.15,1.24939401]
[1722211727370,12.75,185.19,185.15,1.24939401]
[1722211727566,12.75,185.19,185.11,15.351]
[1722211727567,12.75,185.16,185.11,15.351]
[1722211727767,12.75,185.15,185.11,15.351]
[1722211727986,12.75,185.14,185.09,6.57]
[1722211729684,12.75,185.15,185.09,6.57]
[1722211735189,12.75,185.14,185.09,6.57]
[1722211736500,12.75,185.14,185.07,12.75]
[1722211737469,12.75,185.13,185.06,28.8355]
[1722211737668,45.0,185.12,185.07,20.0]
[1722211737868,57.75,185.12,185.07,20.0]
[1722211738798,57.75,185.12,185.06,28.8355]
[1722211738978,57.75,185.12,185.06,16.0855]
[1722211740189,12.75,185.13,185.06,28.8355]
[1722211740387,12.75,185.13,185.07,12.75]
[1722211740571,12.75,185.13,185.07,13.83053263]
[1722211740894,12.75,185.14,185.07,12.75]
[1722211742877,12.75,185.13,185.07,12.75]
[1722211744794,4.3206,185.16,185.07,12.75]
[1722211745106,12.75,185.13,185.07,12.75]
[1722211746595,12.75,185.14,185.07,12.75]
[1722211747799,12.75,185.14,185.08,12.75]
[1722211748102,6.2958,185.21,185.09,12.75]
[1722211748393,12.75,185.17,185.11,12.75]
[1722211748981,12.75,185.18,185.11,12.75]
[1722211749188,12.75,185.19,185.12,12.75]
[1722211751300,4.3196,185.2,185.13,1.08018411]
[1722211751519,12.75,185.2,185.13,12.75]
[1722211752807,12.75,185.21,185.14,12.75]
[1722211753173,17.0695,185.21,185.14,12.75]
[1722211753377,20.0,185.24,185.14,12.75]
[1722211753597,45.34,185.23,185.14,12.75]
[1722211753811,49.3189,185.23,185.14,12.75]
[1722211754101,45.0,185.23,185.14,12.75]
[1722211754289,12.75,185.21,185.14,12.75]
[1722211754692,45.0,185.23,185.15,12.75]
[1722211754890,12.75,185.22,185.16,12.75]
[1722211758096,12.75,185.22,185.15,12.75]
[1722211762711,12.75,185.21,185.11,16.63723504]
[1722211762893,12.75,185.21,185.14,12.75]
[1722211764809,12.75,185.21,185.15,12.75]
[1722211766514,12.75,185.21,185.11,15.5572]
[1722211766721,12.75,185.19,185.13,12.75]
[1722211767034,12.75,185.19,185.14,20.0]
[1722211768015,12.75,185.2,185.14,20.0]
[1722211771997,49.3189,185.23,185.11,15.5572]
[1722211771998,12.75,185.18,185.11,15.5572]
[1722211772208,12.75,185.18,185.11,28.3072]
[1722211773290,15.0162,185.21,185.12,12.75]
[1722211773512,15.0162,185.21,185.13,12.75]
[1722211773513,57.75,185.2,185.13,12.75]
[1722211774507,45.0,185.2,185.14,12.75]